[Event "Titled Tuesday Blitz October 5 2021"]
[White "Girinath, P.D.S."]
[Black "Gontcharov, Vladislav"]
[WhiteFideId "5000572"]
[BlackFideId "4123492"]
[WhiteElo "2333"]
[BlackElo "2503"]
[Result "0-1"]
[Round "11"]
[TimeControl "180+1"]
[Date "2021.10.05"]
[WhiteClock "0:00:01"]
[BlackClock "0:00:41"]

1. e4 {[%clk 0:03:00]}  e6 {[%clk 0:02:59]} 2. d3 {[%clk 0:02:59]}  c5 {[%clk 0:02:59]} 3. Nf3 {[%clk 0:02:58]}  Nc6 {[%clk 0:02:59]} 4. g3 {[%clk 0:02:58]}  g6 {[%clk 0:02:59]} 5. Bg2 {[%clk 0:02:58]}  Bg7 {[%clk 0:02:59]} 6. O-O {[%clk 0:02:58]}  Nge7 {[%clk 0:02:59]} 7. Re1 {[%clk 0:02:57]}  d6 {[%clk 0:02:57]} 8. c3 {[%clk 0:02:55]}  e5 {[%clk 0:02:56]} 9. Na3 {[%clk 0:02:48]}  O-O {[%clk 0:02:55]} 10. Nc4 {[%clk 0:02:47]}  h6 {[%clk 0:02:55]} 11. a4 {[%clk 0:02:45]}  Be6 {[%clk 0:02:53]} 12. Nfd2 {[%clk 0:01:56]}  d5 {[%clk 0:02:47]} 13. exd5 {[%clk 0:01:50]}  Nxd5 {[%clk 0:02:48]} 14. Ne4 {[%clk 0:01:45]}  b6 {[%clk 0:02:47]} 15. a5 {[%clk 0:01:44]}  f5 {[%clk 0:02:34]} 16. Ned6 {[%clk 0:01:36]}  Rb8 {[%clk 0:02:30]} 17. axb6 {[%clk 0:01:33]}  axb6 {[%clk 0:02:27]} 18. Nb5 {[%clk 0:01:27]}  Qd7 {[%clk 0:02:04]} 19. Qa4 {[%clk 0:01:17]}  Nde7 {[%clk 0:01:47]} 20. f4 {[%clk 0:00:46]}  Qxd3 {[%clk 0:01:37]} 21. Ncd6 {[%clk 0:00:43]}  Ra8 {[%clk 0:01:19]} 22. Qxa8 {[%clk 0:00:41]}  Rxa8 {[%clk 0:01:20]} 23. Rxa8+ {[%clk 0:00:41]}  Kh7 {[%clk 0:01:20]} 24. Bf1 {[%clk 0:00:24]}  Qc2 {[%clk 0:01:19]} 25. Nc7 {[%clk 0:00:23]}  Bg8 {[%clk 0:01:14]} 26. Nce8 {[%clk 0:00:21]}  e4 {[%clk 0:01:12]} 27. Nxg7 {[%clk 0:00:19]}  Kxg7 {[%clk 0:01:10]} 28. b4 {[%clk 0:00:10]}  cxb4 {[%clk 0:01:00]} 29. cxb4 {[%clk 0:00:11]}  Nd4 {[%clk 0:00:54]} 30. Bg2 {[%clk 0:00:02]}  Ne2+ {[%clk 0:00:47]} 31. Kh1 {[%clk 0:00:01]}  Nxc1 {[%clk 0:00:47]} 32. Ra7 {[%clk 0:00:01]}  Nd3 {[%clk 0:00:41]} 0-1


[Site "https://www.chess.com"]

[Event "Titled Tuesday Blitz October 5 2021"]
[White "Guzman Moneo, Alberto"]
[Black "Silvestre, Christian"]
[WhiteFideId "2209616"]
[BlackFideId "30956269"]
[WhiteElo "2157"]
[BlackElo "2493"]
[Result "1/2-1/2"]
[Round "11"]
[TimeControl "180+1"]
[Date "2021.10.05"]
[WhiteClock "0:00:25"]
[BlackClock "0:00:08"]

1. d4 {[%clk 0:02:39]}  d5 {[%clk 0:02:51]} 2. Nf3 {[%clk 0:02:36]}  e6 {[%clk 0:02:52]} 3. c4 {[%clk 0:02:35]}  c6 {[%clk 0:02:51]} 4. g3 {[%clk 0:02:35]}  f5 {[%clk 0:02:51]} 5. Bg2 {[%clk 0:02:35]}  Nf6 {[%clk 0:02:51]} 6. O-O {[%clk 0:02:36]}  Be7 {[%clk 0:02:51]} 7. Nc3 {[%clk 0:02:30]}  O-O {[%clk 0:02:50]} 8. Bf4 {[%clk 0:02:30]}  Bd7 {[%clk 0:02:48]} 9. Qb3 {[%clk 0:02:06]}  Bc8 {[%clk 0:02:44]} 10. Ne5 {[%clk 0:02:00]}  Nbd7 {[%clk 0:02:43]} 11. Nxd7 {[%clk 0:01:50]}  Qxd7 {[%clk 0:02:41]} 12. f3 {[%clk 0:01:49]}  dxc4 {[%clk 0:02:09]} 13. Qxc4 {[%clk 0:01:50]}  Nd5 {[%clk 0:02:05]} 14. Bd2 {[%clk 0:01:37]}  b5 {[%clk 0:02:01]} 15. Qd3 {[%clk 0:01:36]}  Nb4 {[%clk 0:02:00]} 16. Qe3 {[%clk 0:01:24]}  Nc2 {[%clk 0:01:56]} 17. Qf2 {[%clk 0:01:22]}  Nxa1 {[%clk 0:01:53]} 18. Rxa1 {[%clk 0:01:21]}  Bf6 {[%clk 0:01:52]} 19. e3 {[%clk 0:01:20]}  Bb7 {[%clk 0:01:51]} 20. Rc1 {[%clk 0:01:16]}  a6 {[%clk 0:01:44]} 21. Ne2 {[%clk 0:01:13]}  Rac8 {[%clk 0:01:40]} 22. Bb4 {[%clk 0:01:12]}  Be7 {[%clk 0:01:35]} 23. Bxe7 {[%clk 0:01:12]}  Qxe7 {[%clk 0:01:36]} 24. Rc5 {[%clk 0:01:12]}  Rcd8 {[%clk 0:01:34]} 25. Nf4 {[%clk 0:01:11]}  Rfe8 {[%clk 0:01:32]} 26. Qc2 {[%clk 0:01:07]}  g5 {[%clk 0:01:19]} 27. Nd3 {[%clk 0:01:05]}  Rd5 {[%clk 0:01:19]} 28. f4 {[%clk 0:01:01]}  Rxc5 {[%clk 0:01:17]} 29. Nxc5 {[%clk 0:01:01]}  gxf4 {[%clk 0:01:14]} 30. gxf4 {[%clk 0:00:59]}  Kh8 {[%clk 0:00:56]} 31. Kh1 {[%clk 0:00:53]}  Rg8 {[%clk 0:00:54]} 32. Bf3 {[%clk 0:00:51]}  Bc8 {[%clk 0:00:49]} 33. Qf2 {[%clk 0:00:50]}  Bd7 {[%clk 0:00:30]} 34. b4 {[%clk 0:00:49]}  Be8 {[%clk 0:00:29]} 35. a3 {[%clk 0:00:48]}  Qf6 {[%clk 0:00:23]} 36. h3 {[%clk 0:00:44]}  Qh6 {[%clk 0:00:22]} 37. Kh2 {[%clk 0:00:43]}  Qg7 {[%clk 0:00:19]} 38. Bh1 {[%clk 0:00:38]}  Qf6 {[%clk 0:00:18]} 39. Bf3 {[%clk 0:00:37]}  Bf7 {[%clk 0:00:17]} 40. Bxc6 {[%clk 0:00:35]}  Bh5 {[%clk 0:00:17]} 41. Bg2 {[%clk 0:00:33]}  Qg6 {[%clk 0:00:16]} 42. Bh1 {[%clk 0:00:30]}  Qf6 {[%clk 0:00:16]} 43. Bg2 {[%clk 0:00:30]}  Bf7 {[%clk 0:00:15]} 44. Nd7 {[%clk 0:00:28]}  Qe7 {[%clk 0:00:14]} 45. Ne5 {[%clk 0:00:29]}  Be8 {[%clk 0:00:14]} 46. Bf3 {[%clk 0:00:29]}  Qg7 {[%clk 0:00:14]} 47. Bh1 {[%clk 0:00:28]}  Qc7 {[%clk 0:00:13]} 48. Bf3 {[%clk 0:00:28]}  Qc1 {[%clk 0:00:13]} 49. Bg2 {[%clk 0:00:27]}  Qxa3 {[%clk 0:00:12]} 50. d5 {[%clk 0:00:26]}  Qxb4 {[%clk 0:00:12]} 51. dxe6 {[%clk 0:00:26]}  Qe7 {[%clk 0:00:12]} 52. Bd5 {[%clk 0:00:26]}  Qd6 {[%clk 0:00:11]} 53. Nf7+ {[%clk 0:00:25]}  Bxf7 {[%clk 0:00:09]} 54. exf7 {[%clk 0:00:26]}  Qxd5 {[%clk 0:00:10]} 55. fxg8=Q+ {[%clk 0:00:25]}  Qxg8 {[%clk 0:00:10]} 56. Qf3 {[%clk 0:00:25]}  Qe6 {[%clk 0:00:10]} 57. Qa8+ {[%clk 0:00:24]}  Kg7 {[%clk 0:00:10]} 58. Qd8 {[%clk 0:00:24]}  Qc6 {[%clk 0:00:08]} 59. Qg5+ {[%clk 0:00:24]}  Qg6 {[%clk 0:00:06]} 60. Qe7+ {[%clk 0:00:24]}  Kh6 {[%clk 0:00:06]} 61. Qh4+ {[%clk 0:00:23]}  Kg7 {[%clk 0:00:06]} 62. Qe7+ {[%clk 0:00:24]}  Qf7 {[%clk 0:00:07]} 63. Qg5+ {[%clk 0:00:23]}  Kf8 {[%clk 0:00:07]} 64. Qd8+ {[%clk 0:00:24]}  Qe8 {[%clk 0:00:07]} 65. Qf6+ {[%clk 0:00:24]}  Qf7 {[%clk 0:00:07]} 66. Qd8+ {[%clk 0:00:24]}  Kg7 {[%clk 0:00:08]} 67. Qg5+ {[%clk 0:00:25]}  Qg6 {[%clk 0:00:08]} 68. Qe7+ {[%clk 0:00:25]} 1/2-1/2


[Site "https://www.chess.com"]

[Event "Titled Tuesday Blitz October 5 2021"]
[White "Heinemann, Josefine"]
[Black "Budrewicz, Krzysztof"]
[WhiteFideId "12900460"]
[BlackFideId "1127950"]
[WhiteElo "2300"]
[BlackElo "2242"]
[Result "0-1"]
[Round "11"]
[TimeControl "180+1"]
[Date "2021.10.05"]
[WhiteClock "0:00:08"]
[BlackClock "0:00:32"]

1. Nf3 {[%clk 0:03:00]}  Nf6 {[%clk 0:02:55]} 2. g3 {[%clk 0:02:59]}  g6 {[%clk 0:02:55]} 3. Bg2 {[%clk 0:02:58]}  Bg7 {[%clk 0:02:54]} 4. O-O {[%clk 0:02:59]}  O-O {[%clk 0:02:54]} 5. d4 {[%clk 0:03:00]}  d6 {[%clk 0:02:53]} 6. c4 {[%clk 0:03:00]}  Nc6 {[%clk 0:02:53]} 7. Nc3 {[%clk 0:03:00]}  Bf5 {[%clk 0:02:52]} 8. Ne1 {[%clk 0:02:53]}  e5 {[%clk 0:02:51]} 9. e4 {[%clk 0:02:51]}  Bg4 {[%clk 0:02:50]} 10. f3 {[%clk 0:02:49]}  exd4 {[%clk 0:02:50]} 11. Nb5 {[%clk 0:02:43]}  Be6 {[%clk 0:02:48]} 12. b3 {[%clk 0:02:38]}  Nd7 {[%clk 0:02:44]} 13. Bb2 {[%clk 0:02:37]}  Nde5 {[%clk 0:02:40]} 14. Nxd4 {[%clk 0:02:34]}  Nxd4 {[%clk 0:02:40]} 15. Bxd4 {[%clk 0:02:34]}  c5 {[%clk 0:02:41]} 16. Bc3 {[%clk 0:02:29]}  Re8 {[%clk 0:02:34]} 17. Qc2 {[%clk 0:02:26]}  a6 {[%clk 0:02:30]} 18. Rd1 {[%clk 0:02:25]}  b5 {[%clk 0:02:28]} 19. cxb5 {[%clk 0:02:24]}  axb5 {[%clk 0:02:29]} 20. Nd3 {[%clk 0:02:21]}  Nxd3 {[%clk 0:02:12]} 21. Rxd3 {[%clk 0:02:21]}  Qb6 {[%clk 0:02:11]} 22. Kh1 {[%clk 0:02:12]}  Bxc3 {[%clk 0:02:11]} 23. Qxc3 {[%clk 0:02:11]}  Rxa2 {[%clk 0:02:10]} 24. Rfd1 {[%clk 0:02:05]}  b4 {[%clk 0:02:06]} 25. Qf6 {[%clk 0:02:00]}  Qd8 {[%clk 0:02:04]} 26. Qf4 {[%clk 0:01:55]}  Qe7 {[%clk 0:01:59]} 27. h4 {[%clk 0:01:51]}  Rb2 {[%clk 0:01:55]} 28. h5 {[%clk 0:01:41]}  Rxb3 {[%clk 0:01:49]} 29. Rxd6 {[%clk 0:01:40]}  g5 {[%clk 0:01:45]} 30. Qe5 {[%clk 0:01:35]}  h6 {[%clk 0:01:43]} 31. Qxc5 {[%clk 0:01:28]}  Qf6 {[%clk 0:01:30]} 32. e5 {[%clk 0:01:17]}  Qe7 {[%clk 0:01:24]} 33. Qb6 {[%clk 0:01:08]}  Kg7 {[%clk 0:01:20]} 34. f4 {[%clk 0:01:04]}  gxf4 {[%clk 0:01:12]} 35. gxf4 {[%clk 0:01:05]}  Qh4+ {[%clk 0:01:12]} 36. Kg1 {[%clk 0:01:02]}  Qxf4 {[%clk 0:01:04]} 37. Qb5 {[%clk 0:00:47]}  Rb2 {[%clk 0:00:55]} 38. Rf1 {[%clk 0:00:20]}  Qg3 {[%clk 0:00:50]} 39. Qc6 {[%clk 0:00:14]}  Rc8 {[%clk 0:00:41]} 40. Qe4 {[%clk 0:00:12]}  Rcc2 {[%clk 0:00:34]} 41. Rxf7+ {[%clk 0:00:09]}  Bxf7 {[%clk 0:00:32]} 42. Rg6+ {[%clk 0:00:08]}  Bxg6 {[%clk 0:00:32]} 0-1


[Site "https://www.chess.com"]

[Event "Titled Tuesday Blitz October 5 2021"]
[White "Horobetz, Graham"]
[Black "Rustemov, Alexander"]
[WhiteFideId "2047322"]
[BlackFideId "4119002"]
[WhiteElo "2628"]
[BlackElo "2791"]
[Result "0-1"]
[Round "11"]
[TimeControl "180+1"]
[Date "2021.10.05"]
[WhiteClock "0:00:02"]
[BlackClock "0:00:07"]

1. e4 {[%clk 0:02:53]}  e6 {[%clk 0:02:59]} 2. d4 {[%clk 0:02:52]}  d5 {[%clk 0:02:59]} 3. Nd2 {[%clk 0:02:53]}  c5 {[%clk 0:02:55]} 4. Ngf3 {[%clk 0:02:48]}  cxd4 {[%clk 0:02:53]} 5. exd5 {[%clk 0:02:47]}  Qxd5 {[%clk 0:02:52]} 6. Bc4 {[%clk 0:02:46]}  Qd7 {[%clk 0:02:51]} 7. O-O {[%clk 0:02:34]}  Nf6 {[%clk 0:02:48]} 8. Nb3 {[%clk 0:02:23]}  Nc6 {[%clk 0:02:46]} 9. Nbxd4 {[%clk 0:02:22]}  Nxd4 {[%clk 0:02:45]} 10. Nxd4 {[%clk 0:02:20]}  a6 {[%clk 0:02:44]} 11. c3 {[%clk 0:01:59]}  Be7 {[%clk 0:02:32]} 12. Re1 {[%clk 0:01:58]}  O-O {[%clk 0:02:30]} 13. Qf3 {[%clk 0:01:41]}  Qc7 {[%clk 0:01:37]} 14. Bd3 {[%clk 0:01:27]}  Qc5 {[%clk 0:01:30]} 15. Bf4 {[%clk 0:01:22]}  Qh5 {[%clk 0:01:29]} 16. Qg3 {[%clk 0:01:13]}  Qg4 {[%clk 0:01:27]} 17. Qxg4 {[%clk 0:00:57]}  Nxg4 {[%clk 0:01:26]} 18. Nf5 {[%clk 0:00:56]}  Bf6 {[%clk 0:01:13]} 19. Nd6 {[%clk 0:00:47]}  Rd8 {[%clk 0:01:12]} 20. Be4 {[%clk 0:00:37]}  Rd7 {[%clk 0:00:57]} 21. Rad1 {[%clk 0:00:34]}  Be5 {[%clk 0:00:33]} 22. Bxe5 {[%clk 0:00:33]}  Nxe5 {[%clk 0:00:33]} 23. Nxc8 {[%clk 0:00:33]}  Rxc8 {[%clk 0:00:29]} 24. Rxd7 {[%clk 0:00:30]}  Nxd7 {[%clk 0:00:30]} 25. Bxb7 {[%clk 0:00:31]}  Rb8 {[%clk 0:00:30]} 26. Bxa6 {[%clk 0:00:26]}  Rxb2 {[%clk 0:00:30]} 27. Rd1 {[%clk 0:00:26]}  Nf8 {[%clk 0:00:27]} 28. Ra1 {[%clk 0:00:15]}  Nd7 {[%clk 0:00:23]} 29. c4 {[%clk 0:00:14]}  Nc5 {[%clk 0:00:16]} 30. Bb5 {[%clk 0:00:14]}  g5 {[%clk 0:00:14]} 31. a4 {[%clk 0:00:14]}  Nb3 {[%clk 0:00:14]} 32. Rd1 {[%clk 0:00:12]}  Kg7 {[%clk 0:00:11]} 33. g3 {[%clk 0:00:12]}  g4 {[%clk 0:00:11]} 34. Kg2 {[%clk 0:00:11]}  f5 {[%clk 0:00:11]} 35. Rd7+ {[%clk 0:00:11]}  Kf6 {[%clk 0:00:10]} 36. Rd6 {[%clk 0:00:12]}  Ra2 {[%clk 0:00:08]} 37. Rd7 {[%clk 0:00:10]}  Nc5 {[%clk 0:00:08]} 38. Rd1 {[%clk 0:00:07]}  Ne4 {[%clk 0:00:08]} 39. Rf1 {[%clk 0:00:07]}  h5 {[%clk 0:00:08]} 40. h3 {[%clk 0:00:07]}  Ke5 {[%clk 0:00:08]} 41. hxg4 {[%clk 0:00:07]}  hxg4 {[%clk 0:00:09]} 42. Bc6 {[%clk 0:00:06]}  Nd2 {[%clk 0:00:07]} 43. Re1+ {[%clk 0:00:06]}  Kd6 {[%clk 0:00:07]} 44. Bb5 {[%clk 0:00:06]}  Ne4 {[%clk 0:00:07]} 45. Rf1 {[%clk 0:00:06]}  Kc5 {[%clk 0:00:08]} 46. Kg1 {[%clk 0:00:06]}  Kd6 {[%clk 0:00:08]} 47. Kg2 {[%clk 0:00:07]}  Kc5 {[%clk 0:00:08]} 48. Kg1 {[%clk 0:00:07]}  Nd2 {[%clk 0:00:06]} 49. Rd1 {[%clk 0:00:06]}  e5 {[%clk 0:00:06]} 50. Kg2 {[%clk 0:00:07]}  e4 {[%clk 0:00:06]} 51. Re1 {[%clk 0:00:07]}  Nf3 {[%clk 0:00:06]} 52. Rd1 {[%clk 0:00:07]}  e3 {[%clk 0:00:07]} 53. Rd5+ {[%clk 0:00:06]}  Kb4 {[%clk 0:00:07]} 54. Rxf5 {[%clk 0:00:02]}  Rxf2+ {[%clk 0:00:06]} 55. Kh1 {[%clk 0:00:02]}  Rh2# {[%clk 0:00:07]} 0-1


[Site "https://www.chess.com"]

[Event "Titled Tuesday Blitz October 5 2021"]
[White "Jobava, Baadur"]
[Black "Salimova, Nurgyul"]
[WhiteFideId "13601520"]
[BlackFideId "2915138"]
[WhiteElo "2964"]
[BlackElo "2778"]
[Result "1-0"]
[Round "11"]
[TimeControl "180+1"]
[Date "2021.10.05"]
[WhiteClock "0:02:15"]
[BlackClock "0:00:57"]

1. e4 {[%clk 0:03:00]}  c5 {[%clk 0:03:00]} 2. d4 {[%clk 0:02:41]}  cxd4 {[%clk 0:02:58]} 3. c3 {[%clk 0:02:42]}  Nf6 {[%clk 0:02:57]} 4. e5 {[%clk 0:02:42]}  Nd5 {[%clk 0:02:57]} 5. Qxd4 {[%clk 0:02:42]}  e6 {[%clk 0:02:57]} 6. Bc4 {[%clk 0:02:43]}  Nc6 {[%clk 0:02:58]} 7. Qe4 {[%clk 0:02:44]}  f5 {[%clk 0:02:44]} 8. Qe2 {[%clk 0:02:43]}  Nb6 {[%clk 0:02:41]} 9. Bb3 {[%clk 0:02:43]}  Na5 {[%clk 0:02:05]} 10. Bc2 {[%clk 0:02:38]}  d5 {[%clk 0:01:55]} 11. exd6 {[%clk 0:02:39]}  Bxd6 {[%clk 0:01:47]} 12. Bxf5 {[%clk 0:02:37]}  O-O {[%clk 0:01:48]} 13. Be4 {[%clk 0:02:35]}  e5 {[%clk 0:01:44]} 14. Nf3 {[%clk 0:02:34]}  Bg4 {[%clk 0:01:40]} 15. Nbd2 {[%clk 0:02:32]}  Kh8 {[%clk 0:01:40]} 16. h3 {[%clk 0:02:30]}  Bh5 {[%clk 0:01:39]} 17. O-O {[%clk 0:02:30]}  Nc6 {[%clk 0:01:37]} 18. Rd1 {[%clk 0:02:30]}  Qe7 {[%clk 0:01:32]} 19. Nf1 {[%clk 0:02:28]}  Nd7 {[%clk 0:01:24]} 20. Ng3 {[%clk 0:02:27]}  Bg6 {[%clk 0:01:10]} 21. Bxg6 {[%clk 0:02:26]}  hxg6 {[%clk 0:01:11]} 22. Qd3 {[%clk 0:02:20]}  Rf6 {[%clk 0:01:05]} 23. Bg5 {[%clk 0:02:20]}  Rxf3 {[%clk 0:00:57]} 24. Bxe7 {[%clk 0:02:14]}  Rxd3 {[%clk 0:00:57]} 25. Rxd3 {[%clk 0:02:15]} 1-0


[Site "https://www.chess.com"]

[Event "Titled Tuesday Blitz October 5 2021"]
[White "Karttunen, Mika"]
[Black "Ferreira, Vitor Hugo Vieira"]
[WhiteFideId "502081"]
[BlackFideId "2119765"]
[WhiteElo "2343"]
[BlackElo "2216"]
[Result "1-0"]
[Round "11"]
[TimeControl "180+1"]
[Date "2021.10.05"]
[WhiteClock "0:00:06"]
[BlackClock "0:01:40"]

1. e4 {[%clk 0:03:00]}  c6 {[%clk 0:03:00]} 2. d4 {[%clk 0:03:00]}  d5 {[%clk 0:03:01]} 3. e5 {[%clk 0:02:58]}  Bf5 {[%clk 0:03:01]} 4. h4 {[%clk 0:02:57]}  h6 {[%clk 0:02:59]} 5. g4 {[%clk 0:02:49]}  Bd7 {[%clk 0:02:59]} 6. h5 {[%clk 0:02:43]}  e6 {[%clk 0:03:00]} 7. f4 {[%clk 0:02:42]}  c5 {[%clk 0:03:00]} 8. c3 {[%clk 0:02:40]}  Qb6 {[%clk 0:03:00]} 9. Nf3 {[%clk 0:02:39]}  Bb5 {[%clk 0:03:00]} 10. Qb3 {[%clk 0:02:02]}  Bxf1 {[%clk 0:02:59]} 11. Qxb6 {[%clk 0:02:01]}  axb6 {[%clk 0:02:59]} 12. Rxf1 {[%clk 0:02:02]}  c4 {[%clk 0:02:56]} 13. Na3 {[%clk 0:01:33]}  Bxa3 {[%clk 0:02:51]} 14. bxa3 {[%clk 0:01:33]}  Ne7 {[%clk 0:02:45]} 15. Rb1 {[%clk 0:01:32]}  Nc8 {[%clk 0:02:45]} 16. f5 {[%clk 0:01:24]}  O-O {[%clk 0:02:44]} 17. f6 {[%clk 0:01:18]}  Nd7 {[%clk 0:02:30]} 18. g5 {[%clk 0:00:35]}  hxg5 {[%clk 0:02:30]} 19. Nxg5 {[%clk 0:00:35]}  gxf6 {[%clk 0:02:29]} 20. exf6 {[%clk 0:00:35]}  e5 {[%clk 0:02:29]} 21. Nf3 {[%clk 0:00:18]}  Re8 {[%clk 0:02:25]} 22. Kd1 {[%clk 0:00:09]}  Nxf6 {[%clk 0:02:15]} 23. Nxe5 {[%clk 0:00:09]}  Ne4 {[%clk 0:02:15]} 24. Rf3 {[%clk 0:00:09]}  Ncd6 {[%clk 0:02:13]} 25. Rxb6 {[%clk 0:00:07]}  Ra6 {[%clk 0:02:10]} 26. Rb2 {[%clk 0:00:06]}  Re6 {[%clk 0:02:04]} 27. Rg2+ {[%clk 0:00:06]}  Kf8 {[%clk 0:02:04]} 28. h6 {[%clk 0:00:06]}  Ke7 {[%clk 0:01:58]} 29. h7 {[%clk 0:00:06]}  Rxa3 {[%clk 0:01:45]} 30. h8=Q {[%clk 0:00:05]}  Nxc3+ {[%clk 0:01:41]} 31. Rxc3 {[%clk 0:00:05]}  Rxc3 {[%clk 0:01:42]} 32. Bg5+ {[%clk 0:00:06]}  f6 {[%clk 0:01:41]} 33. Qg7+ {[%clk 0:00:06]}  Kd8 {[%clk 0:01:40]} 34. Qd7# {[%clk 0:00:06]} 1-0


[Site "https://www.chess.com"]

[Event "Titled Tuesday Blitz October 5 2021"]
[White "Khusnutdinov, Rustam"]
[Black "Mikhalevski, Victor"]
[WhiteFideId "13701703"]
[BlackFideId "2801914"]
[WhiteElo "2919"]
[BlackElo "2751"]
[Result "0-1"]
[Round "11"]
[TimeControl "180+1"]
[Date "2021.10.05"]
[WhiteClock "0:00:14"]
[BlackClock "0:00:49"]

1. d4 {[%clk 0:03:00]}  Nf6 {[%clk 0:03:00]} 2. c4 {[%clk 0:03:00]}  g6 {[%clk 0:03:01]} 3. Nc3 {[%clk 0:03:00]}  d5 {[%clk 0:03:01]} 4. Bg5 {[%clk 0:02:59]}  Bg7 {[%clk 0:02:59]} 5. Bxf6 {[%clk 0:02:59]}  Bxf6 {[%clk 0:02:59]} 6. cxd5 {[%clk 0:03:00]}  c5 {[%clk 0:03:00]} 7. Nf3 {[%clk 0:03:01]}  cxd4 {[%clk 0:02:57]} 8. Nxd4 {[%clk 0:03:01]}  Qb6 {[%clk 0:02:57]} 9. e3 {[%clk 0:03:02]}  Qxb2 {[%clk 0:02:52]} 10. Ncb5 {[%clk 0:02:56]}  Qb4+ {[%clk 0:02:46]} 11. Qd2 {[%clk 0:02:50]}  Qxd2+ {[%clk 0:02:46]} 12. Kxd2 {[%clk 0:02:51]}  Na6 {[%clk 0:02:46]} 13. Be2 {[%clk 0:02:47]}  O-O {[%clk 0:02:45]} 14. Rab1 {[%clk 0:02:35]}  Rd8 {[%clk 0:02:45]} 15. Bf3 {[%clk 0:02:35]}  Bd7 {[%clk 0:02:40]} 16. d6 {[%clk 0:02:29]}  Nc5 {[%clk 0:02:33]} 17. Rhc1 {[%clk 0:02:24]}  Ne6 {[%clk 0:02:12]} 18. Ke1 {[%clk 0:01:18]}  Nxd4 {[%clk 0:02:08]} 19. Nxd4 {[%clk 0:01:14]}  e5 {[%clk 0:01:34]} 20. Ne2 {[%clk 0:00:55]}  Bf5 {[%clk 0:01:31]} 21. e4 {[%clk 0:00:55]}  Be6 {[%clk 0:01:29]} 22. Rxb7 {[%clk 0:00:43]}  Rxd6 {[%clk 0:01:26]} 23. Rc2 {[%clk 0:00:38]}  Ra6 {[%clk 0:01:18]} 24. Nc1 {[%clk 0:00:39]}  Bg5 {[%clk 0:01:15]} 25. Nb3 {[%clk 0:00:38]}  Rd8 {[%clk 0:01:12]} 26. Be2 {[%clk 0:00:38]}  Ra3 {[%clk 0:01:09]} 27. Bc4 {[%clk 0:00:37]}  Rc8 {[%clk 0:01:06]} 28. Bxe6 {[%clk 0:00:17]}  Rxc2 {[%clk 0:01:05]} 29. Rxf7 {[%clk 0:00:18]}  Kh8 {[%clk 0:00:53]} 30. g3 {[%clk 0:00:15]}  Raxa2 {[%clk 0:00:52]} 31. h4 {[%clk 0:00:13]}  Rab2 {[%clk 0:00:50]} 32. Kf1 {[%clk 0:00:14]}  Be3 {[%clk 0:00:49]} 0-1


[Site "https://www.chess.com"]

[Event "Titled Tuesday Blitz October 5 2021"]
[White "Krivonosov, Oleg"]
[Black "Aggelis, Nikolaos"]
[WhiteFideId "11600349"]
[BlackFideId "4213220"]
[WhiteElo "2469"]
[BlackElo "2154"]
[Result "1-0"]
[Round "11"]
[TimeControl "180+1"]
[Date "2021.10.05"]
[WhiteClock "0:01:20"]
[BlackClock "0:00:24"]

1. Nf3 {[%clk 0:03:00]}  Nf6 {[%clk 0:02:57]} 2. c4 {[%clk 0:02:59]}  g6 {[%clk 0:02:57]} 3. Nc3 {[%clk 0:02:59]}  d5 {[%clk 0:02:56]} 4. cxd5 {[%clk 0:02:58]}  Nxd5 {[%clk 0:02:57]} 5. e4 {[%clk 0:02:58]}  Nxc3 {[%clk 0:02:57]} 6. dxc3 {[%clk 0:02:59]}  Qxd1+ {[%clk 0:02:57]} 7. Kxd1 {[%clk 0:03:00]}  f6 {[%clk 0:02:57]} 8. Be3 {[%clk 0:02:59]}  e5 {[%clk 0:02:57]} 9. Nd2 {[%clk 0:02:58]}  Be6 {[%clk 0:02:57]} 10. Bc4 {[%clk 0:02:57]}  Kf7 {[%clk 0:02:57]} 11. Kc2 {[%clk 0:02:55]}  Nd7 {[%clk 0:02:57]} 12. Rhd1 {[%clk 0:02:55]}  Bc5 {[%clk 0:02:57]} 13. Nb3 {[%clk 0:02:54]}  Bd6 {[%clk 0:02:34]} 14. Bxe6+ {[%clk 0:02:52]}  Kxe6 {[%clk 0:02:34]} 15. Na5 {[%clk 0:02:51]}  Rab8 {[%clk 0:02:30]} 16. Nc4 {[%clk 0:02:47]}  Nb6 {[%clk 0:02:22]} 17. Bxb6 {[%clk 0:02:38]}  axb6 {[%clk 0:02:23]} 18. Nxd6 {[%clk 0:02:33]}  cxd6 {[%clk 0:02:24]} 19. Rd5 {[%clk 0:02:33]}  Rhc8 {[%clk 0:02:22]} 20. Rad1 {[%clk 0:02:32]}  Rc6 {[%clk 0:02:21]} 21. Rb5 {[%clk 0:02:27]}  Ra8 {[%clk 0:02:19]} 22. a3 {[%clk 0:02:25]}  Ra5 {[%clk 0:02:20]} 23. Rxa5 {[%clk 0:02:20]}  bxa5 {[%clk 0:02:19]} 24. Rd5 {[%clk 0:02:16]}  Rc5 {[%clk 0:02:02]} 25. Rxc5 {[%clk 0:02:13]}  dxc5 {[%clk 0:02:02]} 26. Kb3 {[%clk 0:02:11]}  Kd6 {[%clk 0:01:51]} 27. Ka4 {[%clk 0:02:10]}  b6 {[%clk 0:01:51]} 28. Kb5 {[%clk 0:02:10]}  Kc7 {[%clk 0:01:51]} 29. Ka6 {[%clk 0:02:09]}  Kc6 {[%clk 0:01:50]} 30. b3 {[%clk 0:01:59]}  h5 {[%clk 0:01:34]} 31. c4 {[%clk 0:01:54]}  Kc7 {[%clk 0:01:28]} 32. f3 {[%clk 0:01:48]}  h4 {[%clk 0:01:23]} 33. g3 {[%clk 0:01:44]}  hxg3 {[%clk 0:01:08]} 34. hxg3 {[%clk 0:01:43]}  Kc6 {[%clk 0:01:07]} 35. g4 {[%clk 0:01:35]}  Kc7 {[%clk 0:01:05]} 36. Ka7 {[%clk 0:01:30]}  Kc6 {[%clk 0:00:54]} 37. Kb8 {[%clk 0:01:26]}  b5 {[%clk 0:00:54]} 38. a4 {[%clk 0:01:25]}  bxc4 {[%clk 0:00:33]} 39. bxc4 {[%clk 0:01:24]}  Kd6 {[%clk 0:00:24]} 40. Kb7 {[%clk 0:01:22]}  f5 {[%clk 0:00:24]} 41. g5 {[%clk 0:01:20]} 1-0


[Site "https://www.chess.com"]

[Event "Titled Tuesday Blitz October 5 2021"]
[White "Liyanage, Ranindu Dilshan"]
[Black "Ertan, Can"]
[WhiteFideId "9915834"]
[BlackFideId "6306330"]
[WhiteElo "1839"]
[BlackElo "2223"]
[Result "1-0"]
[Round "11"]
[TimeControl "180+1"]
[Date "2021.10.05"]
[WhiteClock "0:01:51"]
[BlackClock "0:00:07"]

1. e4 {[%clk 0:03:00]}  e5 {[%clk 0:03:00]} 2. Nf3 {[%clk 0:03:00]}  Nc6 {[%clk 0:03:00]} 3. Bc4 {[%clk 0:03:01]}  Bc5 {[%clk 0:02:59]} 4. c3 {[%clk 0:03:00]}  Nf6 {[%clk 0:03:00]} 5. d3 {[%clk 0:03:01]}  d6 {[%clk 0:02:57]} 6. h3 {[%clk 0:03:00]}  a6 {[%clk 0:02:57]} 7. Bb3 {[%clk 0:03:01]}  O-O {[%clk 0:02:55]} 8. Nbd2 {[%clk 0:03:01]}  Ba7 {[%clk 0:02:53]} 9. Nf1 {[%clk 0:03:01]}  d5 {[%clk 0:02:47]} 10. Qe2 {[%clk 0:03:01]}  h6 {[%clk 0:02:45]} 11. Ng3 {[%clk 0:03:00]}  Be6 {[%clk 0:02:42]} 12. Nh2 {[%clk 0:03:00]}  Re8 {[%clk 0:02:36]} 13. Qf3 {[%clk 0:02:59]}  b5 {[%clk 0:02:02]} 14. Ng4 {[%clk 0:02:58]}  Nxg4 {[%clk 0:01:57]} 15. hxg4 {[%clk 0:02:58]}  Ne7 {[%clk 0:01:48]} 16. g5 {[%clk 0:02:56]}  hxg5 {[%clk 0:01:37]} 17. Bxg5 {[%clk 0:02:57]}  f6 {[%clk 0:00:45]} 18. Bxf6 {[%clk 0:02:21]}  Rf8 {[%clk 0:00:43]} 19. Nh5 {[%clk 0:02:22]}  Qe8 {[%clk 0:00:09]} 20. exd5 {[%clk 0:01:57]}  Nxd5 {[%clk 0:00:07]} 21. Bxd5 {[%clk 0:01:55]}  gxf6 {[%clk 0:00:07]} 22. Nxf6+ {[%clk 0:01:51]} 1-0


[Site "https://www.chess.com"]